Workbook

Sheet MENU
A5: C1 | C5: C1. VARIACIÓN ENTRE PADRÓN DEL 2006 Y 2008 | E5: C11. DEFUNCIONES INSCRITAS POR PROVINCIA
A6: =LEFT(C6,4) -> C2. | C6: C2. PADRÓN POR SEXO SEGÚN PROV. Y CANT | E6: C12. SOLICITUDES DE CÉDULA RECIBIDAS POR CLASE
A7: C3. | C7: C3. PADRÓN POR PROV. SEGÚN SEXO Y EDAD | E7: G6. GRÁFICO-PORCENTAJE DE SOLICIT. DE CÉDULA
A8: G1. | C8: G1. GRÁFICO DE ELECTORES POR SEXO Y EDAD | E8: C13. SOLICITUDES DE CÉDULA RECIBIDAS POR FUENTE DE INGRESO
A9: C4. | C9: C4. ELECTORES POR PAÍS DE ORIGEN | E9: G7. GRÁFICO-SOLICIT. CÉDULA RECIBIDAS POR FUENTE DE INGRESO
A10: G2. | C10: G2. GRÁFICO DE ELECTORES POR PAÍS DE ORIGEN | E10: C14. SOLICITUDES DE CÉDULA RECIBIDAS POR CLASE SEGÚN PROV.
A11: C5. | C11: C5. MOVIMIENTOS AL PADRÓN | E11: G8. GRÁFICO-SOLICIT. CÉDULA RECIB. POR CLASE SEGÚN PROV.
A12: C6. | C12: C6. PRODUCTOS Y SERV. BRINDADOS POR EL TSE | E12: C15. RESOLUCIONES POR TIPO
A13: C7. | C13: C7. CERTIFICACIONES TRAMITADAS POR INTERNET | E13: C16. RESOLUCIONES ELECTORALES POR ACCIÓN TRAMITADA
A14: C8. | C14: C8. TARJETA IDENTIDAD MENORES (TIM) POR PROV. | E14: C17. RESOLUCIONES MUNICIPALES POR ACCIÓN TRAMITADA
A15: C9. | C15: C9. INSCRIPCIONES CIVILES | E15: C18. ASPECTOS RELACIONADOS CON PATERNIDAD RESPONSABLE
A16: G3. | C16: G3. GRÁFICO DE NACIMIENTOS Y DEFUNCIONES | E16: C19. TRÁMITES RELACIONADOS CON PRUEBAS DE ADN
A17: G4. | C17: G4. GRÁFICO MATRIMONIOS INSCRITOS | E17: C20. RESULTADOS DE PRUEBAS DE ADN REALIZADAS
A18: G5. | C18: G5. GRÁFICO DE MATRIMONIOS Y DIVORCIOS | E18: C21. DONACIONES A PARTIDOS POLÍTICOS, SEGÚN PARTIDO
A19: C10. | C19: C10. NACIMIENTOS INSCRITOS POR PROVINCIA | E19: C22. DONACIONES A PARTIDOS POLÍT., SEGÚN TIPO DE PERSONA
A24: =LEFT(#REF!,4) ->  | C24: Observaciones al
A25: =LEFT(#REF!,4) ->  | C25: correo electrónico: dejecutiva@tse.go.cr
A26: =LEFT(C26,4) -> 

Sheet C1
A1: CUADRO 1
A3: COSTA RICA: TOTAL DE ELECTORES AL 30 DE SETIEMBRE DEL 2008 Y VARIACIÓN
A4: ENTRE EL PADRÓN DE LAS ELECCIONES DE DICIEMBRE 2006 Y EL PADRÓN
A5: AL 31 DE DICIEMBRE DE 2008, SEGÚN PROVINCIA Y SEXO
A9: Provincia y sexo | B9: Padrón Nacional Electoral | G9: Variación
B10: Diciembre 2006 | D10: Diciembre 20081/ | G10: Absoluto | I10: Porcentaje
A12: Costa Rica | B12: 2603770 | D12: 2743641 | G12: 139871 | I12: 5.371864642
A13: Hombres | B13: 1300955 | D13: 1371884 | G13: 70929 | I13: 5.452071747
A14: Mujeres | B14: 1302815 | D14: 1371757 | G14: 68942 | I14: 5.291772047
A16: San José | B16: 952561 | D16: 991315 | G16: 38754 | I16: 4.068400869
A17: Hombres | B17: 463852 | D17: 483952 | G17: 20100 | I17: 4.333278718
A18: Mujeres | B18: 488709 | D18: 507363 | G18: 18654 | I18: 3.81699539
A20: Alajuela | B20: 476942 | D20: 505355 | G20: 28413 | I20: 5.957328145
A21: Hombres | B21: 240771 | D21: 255184 | G21: 14413 | I21: 5.986186044
A22: Mujeres | B22: 236171 | D22: 250171 | G22: 14000 | I22: 5.927908168
A24: Cartago | B24: 301688 | D24: 318139 | G24: 16451 | I24: 5.45298454
A25: Hombres | B25: 150759 | D25: 159138 | G25: 8379 | I25: 5.557877142
A26: Mujeres | B26: 150929 | D26: 159001 | G26: 8072 | I26: 5.348210086
A28: Heredia | B28: 251999 | D28: 267953 | G28: 15954 | I28: 6.330977504
A29: Hombres | B29: 124470 | D29: 132479 | G29: 8009 | I29: 6.434482205
A30: Mujeres | B30: 127529 | D30: 135474 | G30: 7945 | I30: 6.22995554
A32: Guanacaste | B32: 178788 | D32: 191080 | G32: 12292 | I32: 6.87518178
A33: Hombres | B33: 90680 | D33: 97146 | G33: 6466 | I33: 7.130569034
A34: Mujeres | B34: 88108 | D34: 93934 | G34: 5826 | I34: 6.612339402
A36: Puntarenas | B36: 236660 | D36: 251453 | G36: 14793 | I36: 6.250739457
A37: Hombres | B37: 122811 | D37: 130250 | G37: 7439 | I37: 6.057275
A38: Mujeres | B38: 113849 | D38: 121203 | G38: 7354 | I38: 6.459433109
A40: Limón | B40: 205132 | D40: 218346 | G40: 13214 | I40: 6.441705828
A41: Hombres | B41: 107612 | D41: 113735 | G41: 6123 | I41: 5.689885886
A42: Mujeres | B42: 97520 | D42: 104611 | G42: 7091 | I42: 7.271328958
A45: 1/ Incluye las personas menores que tramitaron su cédula y cumplirán 18 años hasta el 7 de febrero de 2010.
A46: Fuente: Sección Padrón Electoral del Tribunal Supremo de Elecciones.

Sheet C2
A1: CUADRO 2
A3: COSTA RICA: TOTAL DE ELECTORES EN EL PADRÓN UTILIZADO EN LAS ELECCIONES
A4: DE DICIEMBRE 2006 Y EN EL PADRÓN AL 31 DE DICIEMBRE DE 2008
A5: POR SEXO, SEGÚN PROVINCIA Y CANTÓN
A7: Provincia y cantón | B7: Padrón Nacional Electoral
B8: Diciembre 2006 | I8: Diciembre 20081/
B9: Total | D9: Hombres | F9: Mujeres | I9: Total | K9: Hombres | M9: Mujeres
A11: Costa Rica | B11: 2603770 | D11: 1300955 | F11: 1302815 | I11: 2743641 | K11: 1371884 | M11: 1371757
A12: San José | B12: 952561 | D12: 463852 | F12: 488709 | I12: 991315 | K12: 483952 | M12: 507363
A13: Alajuela | B13: 476942 | D13: 240771 | F13: 236171 | I13: 505355 | K13: 255184 | M13: 250171
A14: Cartago | B14: 301688 | D14: 150759 | F14: 150929 | I14: 318139 | K14: 159138 | M14: 159001
A15: Heredia | B15: 251999 | D15: 124470 | F15: 127529 | I15: 267953 | K15: 132479 | M15: 135474
A16: Guanacaste | B16: 178788 | D16: 90680 | F16: 88108 | I16: 191080 | K16: 97146 | M16: 93934
A17: Puntarenas | B17: 236660 | D17: 122811 | F17: 113849 | I17: 251453 | K17: 130250 | M17: 121203
A18: Limón | B18: 205132 | D18: 107612 | F18: 97520 | I18: 218346 | K18: 113735 | M18: 104611
A20: San José | B20: 952561 | D20: 463852 | F20: 488709 | I20: 991315 | K20: 483952 | M20: 507363
A21: San José | B21: 223838 | D21: 107192 | F21: 116646 | I21: 225795 | K21: 108447 | M21: 117348
A22: Escazú | B22: 36674 | D22: 17844 | F22: 18830 | I22: 38791 | K22: 18964 | M22: 19827
A23: Desamparados | B23: 134363 | D23: 65945 | F23: 68418 | I23: 141090 | K23: 69370 | M23: 71720
A24: Puriscal | B24: 22038 | D24: 11137 | F24: 10901 | I24: 23352 | K24: 11797 | M24: 11555
A25: Tarrazú | B25: 9436 | D25: 4860 | F25: 4576 | I25: 9941 | K25: 5101 | M25: 4840
A26: Aserrí | B26: 33851 | D26: 17024 | F26: 16827 | I26: 35947 | K26: 18035 | M26: 17912
A27: Mora | B27: 15245 | D27: 7665 | F27: 7580 | I27: 16276 | K27: 8149 | M27: 8127
A28: Goicoechea | B28: 82656 | D28: 39519 | F28: 43137 | I28: 85030 | K28: 40827 | M28: 44203
A29: Santa Ana | B29: 24156 | D29: 11922 | F29: 12234 | I29: 26141 | K29: 12879 | M29: 13262
A30: Alajuelita | B30: 41250 | D30: 20732 | F30: 20518 | I30: 43435 | K30: 21743 | M30: 21692
A31: Vázquez de Coronado | B31: 40007 | D31: 19410 | F31: 20597 | I31: 43244 | K31: 20963 | M31: 22281
A32: Acosta | B32: 12923 | D32: 6825 | F32: 6098 | I32: 13706 | K32: 7202 | M32: 6504
A33: Tibás | B33: 55489 | D33: 26149 | F33: 29340 | I33: 55749 | K33: 26350 | M33: 29399
A34: Moravia | B34: 37121 | D34: 17648 | F34: 19473 | I34: 38962 | K34: 18664 | M34: 20298
A35: Montes de Oca | B35: 40201 | D35: 18545 | F35: 21656 | I35: 40923 | K35: 18978 | M35: 21945
A36: Turrubares | B36: 3768 | D36: 1958 | F36: 1810 | I36: 3852 | K36: 2017 | M36: 1835
A37: Dota | B37: 4433 | D37: 2243 | F37: 2190 | I37: 4601 | K37: 2318 | M37: 2283
A38: Curridabat | B38: 41300 | D38: 19830 | F38: 21470 | I38: 43132 | K38: 20780 | M38: 22352
A39: Pérez Zeledón | B39: 86526 | D39: 43685 | F39: 42841 | I39: 93639 | K39: 47415 | M39: 46224
A40: León Cortés | B40: 7286 | D40: 3719 | F40: 3567 | I40: 7709 | K40: 3953 | M40: 3756
N42: continúa…
A46: Continúa Cuadro 2
A48: COSTA RICA: TOTAL DE ELECTORES EN EL PADRÓN UTILIZADO EN LAS ELECCIONES
A49: DE DICIEMBRE 2006 Y EN EL PADRÓN AL 31 DE DICIEMBRE DE 2008
A50: POR SEXO, SEGÚN PROVINCIA Y CANTÓN
A52: Provincia y cantón | B52: Padrón Nacional Electoral
B53: Diciembre 2006 | I53: Diciembre 20081/
B54: Total | D54: Hombres | F54: Mujeres | I54: Total | K54: Hombres | M54: Mujeres
A56: Alajuela | B56: 476942 | D56: 240771 | F56: 236171 | I56: 505355 | K56: 255184 | M56: 250171
A57: Alajuela | B57: 157849 | D57: 79246 | F57: 78603 | I57: 165986 | K57: 83305 | M57: 82681
A58: San Ramón | B58: 47920 | D58: 23882 | F58: 24038 | I58: 50827 | K58: 25334 | M58: 25493
A59: Grecia | B59: 45890 | D59: 23036 | F59: 22854 | I59: 48321 | K59: 24276 | M59: 24045
A60: San Mateo | B60: 3542 | D60: 1850 | F60: 1692 | I60: 3622 | K60: 1898 | M60: 1724
A61: Atenas | B61: 15896 | D61: 8060 | F61: 7836 | I61: 16701 | K61: 8459 | M61: 8242
A62: Naranjo | B62: 25591 | D62: 12737 | F62: 12854 | I62: 26863 | K62: 13376 | M62: 13487
A63: Palmares | B63: 22549 | D63: 11207 | F63: 11342 | I63: 23916 | K63: 11871 | M63: 12045
A64: Poás | B64: 16227 | D64: 8143 | F64: 8084 | I64: 17211 | K64: 8681 | M64: 8530
A65: Orotina | B65: 11256 | D65: 5628 | F65: 5628 | I65: 12125 | K65: 6097 | M65: 6028
A66: San Carlos | B66: 76904 | D66: 39294 | F66: 37610 | I66: 83060 | K66: 42483 | M66: 40577
A67: Alfaro Ruiz | B67: 7158 | D67: 3607 | F67: 3551 | I67: 7575 | K67: 3810 | M67: 3765
A68: Valverde Vega | B68: 11497 | D68: 5748 | F68: 5749 | I68: 12144 | K68: 6049 | M68: 6095
A69: Upala | B69: 18914 | D69: 9951 | F69: 8963 | I69: 20150 | K69: 10604 | M69: 9546
A70: Los Chiles | B70: 8112 | D70: 4366 | F70: 3746 | I70: 8627 | K70: 4624 | M70: 4003
A71: Guatuso | B71: 7637 | D71: 4016 | F71: 3621 | I71: 8227 | K71: 4317 | M71: 3910
A73: Cartago | B73: 301688 | D73: 150759 | F73: 150929 | I73: 318139 | K73: 159138 | M73: 159001
A74: Cartago | B74: 97160 | D74: 48059 | F74: 49101 | I74: 101700 | K74: 50407 | M74: 51293
A75: Paraíso | B75: 35636 | D75: 17881 | F75: 17755 | I75: 37661 | K75: 18920 | M75: 18741
A76: La Unión | B76: 52450 | D76: 26075 | F76: 26375 | I76: 55921 | K76: 27866 | M76: 28055
A77: Jiménez | B77: 9688 | D77: 5033 | F77: 4655 | I77: 10099 | K77: 5249 | M77: 4850
A78: Turrialba | B78: 48087 | D78: 24211 | F78: 23876 | I78: 50166 | K78: 25247 | M78: 24919
A79: Alvarado | B79: 7679 | D79: 3890 | F79: 3789 | I79: 8153 | K79: 4137 | M79: 4016
A80: Oreamuno | B80: 27124 | D80: 13388 | F80: 13736 | I80: 28711 | K80: 14187 | M80: 14524
A81: El Guarco | B81: 23864 | D81: 12222 | F81: 11642 | I81: 25728 | K81: 13125 | M81: 12603
A83: Heredia | B83: 251999 | D83: 124470 | F83: 127529 | I83: 267953 | K83: 132479 | M83: 135474
A84: Heredia | B84: 78213 | D84: 37476 | F84: 40737 | I84: 82234 | K84: 39489 | M84: 42745
A85: Barva | B85: 24081 | D85: 11748 | F85: 12333 | I85: 25780 | K85: 12642 | M85: 13138
A86: Santo Domingo | B86: 27560 | D86: 13663 | F86: 13897 | I86: 29023 | K86: 14410 | M86: 14613
A87: Santa Bárbara | B87: 19882 | D87: 9927 | F87: 9955 | I87: 21333 | K87: 10644 | M87: 10689
A88: San Rafael | B88: 26447 | D88: 13190 | F88: 13257 | I88: 28009 | K88: 14000 | M88: 14009
A89: San Isidro | B89: 11428 | D89: 5689 | F89: 5739 | I89: 12228 | K89: 6118 | M89: 6110
A90: Belén | B90: 14339 | D90: 7120 | F90: 7219 | I90: 15083 | K90: 7466 | M90: 7617
A91: Flores | B91: 11803 | D91: 5788 | F91: 6015 | I91: 12736 | K91: 6231 | M91: 6505
A92: San Pablo | B92: 15619 | D92: 7577 | F92: 8042 | I92: 16937 | K92: 8216 | M92: 8721
A93: Sarapiquí | B93: 22627 | D93: 12292 | F93: 10335 | I93: 24590 | K93: 13263 | M93: 11327
N95: continúa…
A97: Continúa Cuadro 2
A99: COSTA RICA: TOTAL DE ELECTORES EN EL PADRÓN UTILIZADO EN LAS ELECCIONES
A100: DE DICIEMBRE 2006 Y EN EL PADRÓN AL 31 DE DICIEMBRE DE 2008
A101: POR SEXO, SEGÚN PROVINCIA Y CANTÓN
A103: Provincia y cantón | B103: Padrón Nacional Electoral
B104: Diciembre 2006 | I104: Diciembre 20081/
B105: Total | D105: Hombres | F105: Mujeres | I105: Total | K105: Hombres | M105: Mujeres
A107: Guanacaste | B107: 178788 | D107: 90680 | F107: 88108 | I107: 191080 | K107: 97146 | M107: 93934
A108: Liberia | B108: 32303 | D108: 16053 | F108: 16250 | I108: 35266 | K108: 17596 | M108: 17670
A109: Nicoya | B109: 31707 | D109: 16066 | F109: 15641 | I109: 33656 | K109: 17080 | M109: 16576
A110: Santa Cruz | B110: 29852 | D110: 15224 | F110: 14628 | I110: 32155 | K110: 16483 | M110: 15672
A111: Bagaces | B111: 9869 | D111: 5021 | F111: 4848 | I111: 10515 | K111: 5352 | M111: 5163
A112: Carrillo | B112: 17448 | D112: 8884 | F112: 8564 | I112: 18767 | K112: 9590 | M112: 9177
A113: Cañas | B113: 15854 | D113: 7981 | F113: 7873 | I113: 16544 | K113: 8324 | M113: 8220
A114: Abangares | B114: 10612 | D114: 5498 | F114: 5114 | I114: 10996 | K114: 5695 | M114: 5301
A115: Tilarán | B115: 12161 | D115: 6119 | F115: 6042 | I115: 12682 | K115: 6404 | M115: 6278
A116: Nandayure | B116: 6656 | D116: 3456 | F116: 3200 | I116: 7185 | K116: 3755 | M116: 3430
A117: La Cruz | B117: 7812 | D117: 4045 | F117: 3767 | I117: 8518 | K117: 4398 | M117: 4120
A118: Hojancha | B118: 4514 | D118: 2333 | F118: 2181 | I118: 4796 | K118: 2469 | M118: 2327
A120: Puntarenas | B120: 236660 | D120: 122811 | F120: 113849 | I120: 251453 | K120: 130250 | M120: 121203
A121: Puntarenas | B121: 70884 | D121: 36525 | F121: 34359 | I121: 74526 | K121: 38396 | M121: 36130
A122: Esparza | B122: 16418 | D122: 8164 | F122: 8254 | I122: 17523 | K122: 8702 | M122: 8821
A123: Buenos Aires | B123: 23632 | D123: 12600 | F123: 11032 | I123: 25654 | K123: 13601 | M123: 12053
A124: Montes de Oro | B124: 7849 | D124: 3894 | F124: 3955 | I124: 8279 | K124: 4091 | M124: 4188
A125: Osa | B125: 16577 | D125: 8870 | F125: 7707 | I125: 17689 | K125: 9415 | M125: 8274
A126: Aguirre | B126: 14330 | D126: 7664 | F126: 6666 | I126: 15562 | K126: 8357 | M126: 7205
A127: Golfito | B127: 22490 | D127: 11733 | F127: 10757 | I127: 23590 | K127: 12293 | M127: 11297
A128: Coto Brus | B128: 24647 | D128: 12659 | F128: 11988 | I128: 25284 | K128: 12893 | M128: 12391
A129: Parrita | B129: 8157 | D129: 4299 | F129: 3858 | I129: 9087 | K129: 4749 | M129: 4338
A130: Corredores | B130: 24590 | D130: 12538 | F130: 12052 | I130: 26183 | K130: 13376 | M130: 12807
A131: Garabito | B131: 7086 | D131: 3865 | F131: 3221 | I131: 8076 | K131: 4377 | M131: 3699
A133: Limón | B133: 205132 | D133: 107612 | F133: 97520 | I133: 218346 | K133: 113735 | M133: 104611
A134: Limón | B134: 58080 | D134: 29701 | F134: 28379 | I134: 60484 | K134: 30762 | M134: 29722
A135: Pococí | B135: 65050 | D135: 34211 | F135: 30839 | I135: 70413 | K135: 36810 | M135: 33603
A136: Siquirres | B136: 31380 | D136: 16691 | F136: 14689 | I136: 32978 | K136: 17411 | M136: 15567
A137: Talamanca | B137: 13239 | D137: 7158 | F137: 6081 | I137: 14540 | K137: 7775 | M137: 6765
A138: Matina | B138: 16768 | D138: 9043 | F138: 7725 | I138: 17587 | K138: 9334 | M138: 8253
A139: Guácimo | B139: 20615 | D139: 10808 | F139: 9807 | I139: 22344 | K139: 11643 | M139: 10701
A142: 1/ Incluye las personas menores que tramitaron su cédula y cumplirán 18 años hasta el 7 de febrero de 2010.
A143: Fuente: Sección Padrón Electoral del Tribunal Supremo de Elecciones

Sheet C3
A1: CUADRO 3
A3: COSTA RICA: TOTAL DE ELECTORES POR PROVINCIA, SEGÚN SEXO Y
A4: GRUPO DE EDAD, AL 31 DE DICIEMBRE DEL 20081/
A6: Sexo y grupo de edad | B6: Total | D6: San José | F6: Alajuela | H6: Cartago | J6: Heredia | L6: Guanacaste | N6: Puntarenas | P6: Limón
A8: Costa Rica | B8: 2743641 | D8: 991315 | F8: 505355 | H8: 318139 | J8: 267953 | L8: 191080 | N8: 251453 | P8: 218346
A9: Menos de 20 | B9: 156665 | D9: 52887 | F9: 30245 | H9: 18354 | J9: 14323 | L9: 11253 | N9: 15539 | P9: 14064
A10: 20 - 24 | B10: 393162 | D10: 133397 | F10: 74899 | H10: 46773 | J10: 37029 | L10: 28061 | N10: 38147 | P10: 34856
A11: 25 - 29 | B11: 341517 | D11: 123535 | F11: 61361 | H11: 39377 | J11: 33975 | L11: 23660 | N11: 31896 | P11: 27713
A12: 30 - 34 | B12: 289769 | D12: 103803 | F12: 51784 | H12: 34199 | J12: 29272 | L12: 19825 | N12: 26908 | P12: 23978
A13: 35 - 39 | B13: 267603 | D13: 93468 | F13: 48959 | H13: 32406 | J13: 26345 | L13: 18213 | N13: 25195 | P13: 23017
A14: 40 - 44 | B14: 275980 | D14: 97292 | F14: 52010 | H14: 33331 | J14: 27276 | L14: 18799 | N14: 25238 | P14: 22034
A15: 45 - 49 | B15: 257129 | D15: 93902 | F15: 48397 | H15: 29748 | J15: 25686 | L15: 17332 | N15: 22451 | P15: 19613
A16: 50 - 54 | B16: 211158 | D16: 79136 | F16: 38154 | H16: 23970 | J16: 21433 | L16: 14114 | N16: 18366 | P16: 15985
A17: 55 - 59 | B17: 160920 | D17: 61746 | F17: 28355 | H17: 17704 | J17: 16285 | L17: 10929 | N17: 13983 | P17: 11918
A18: 60 - 64 | B18: 118995 | D18: 46203 | F18: 21518 | H18: 12938 | J18: 11450 | L18: 8329 | N18: 10205 | P18: 8352
A19: 65 - 69 | B19: 89200 | D19: 33854 | F19: 16805 | H19: 10039 | J19: 8317 | L19: 6395 | N19: 7899 | P19: 5891
A20: 70 - 74 | B20: 69089 | D20: 26838 | F20: 12639 | H20: 7621 | J20: 6274 | L20: 5177 | N20: 6051 | P20: 4489
A21: 75 - 79 | B21: 51105 | D21: 20478 | F21: 9094 | H21: 5540 | J21: 4676 | L21: 3932 | N21: 4444 | P21: 2941
A22: 80 - 84 | B22: 34533 | D22: 14026 | F22: 6231 | H22: 3580 | J22: 3184 | L22: 2670 | N22: 2851 | P22: 1991
A23: 85 y más | B23: 26816 | D23: 10750 | F23: 4904 | H23: 2559 | J23: 2428 | L23: 2391 | N23: 2280 | P23: 1504
A25: Hombres | B25: 1371884 | D25: 483952 | F25: 255184 | H25: 159138 | J25: 132479 | L25: 97146 | N25: 130250 | P25: 113735
A26: Menos de 20 | B26: 79994 | D26: 26851 | F26: 15529 | H26: 9432 | J26: 7385 | L26: 5740 | N26: 7912 | P26: 7145
A27: 20 - 24 | B27: 200682 | D27: 67484 | F27: 38570 | H27: 23979 | J27: 18792 | L27: 14473 | N27: 19636 | P27: 17748
A28: 25 - 29 | B28: 173787 | D28: 62679 | F28: 31415 | H28: 20115 | J28: 17191 | L28: 12103 | N28: 16342 | P28: 13942
A29: 30 - 34 | B29: 146578 | D29: 52566 | F29: 26280 | H29: 17174 | J29: 14804 | L29: 9934 | N29: 13697 | P29: 12123
A30: 35 - 39 | B30: 134571 | D30: 46709 | F30: 24628 | H30: 16049 | J30: 13155 | L30: 9200 | N30: 12954 | P30: 11876
A31: 40 - 44 | B31: 138275 | D31: 48220 | F31: 26038 | H31: 16627 | J31: 13444 | L31: 9526 | N31: 12990 | P31: 11430
A32: 45 - 49 | B32: 128226 | D32: 45547 | F32: 24312 | H32: 14833 | J32: 12630 | L32: 8904 | N32: 11698 | P32: 10302
A33: 50 - 54 | B33: 104641 | D33: 37706 | F33: 19345 | H33: 11901 | J33: 10427 | L33: 7130 | N33: 9557 | P33: 8575
A34: 55 - 59 | B34: 79144 | D34: 28840 | F34: 14315 | H34: 8659 | J34: 7826 | L34: 5579 | N34: 7360 | P34: 6565
A35: 60 - 64 | B35: 58418 | D35: 21578 | F35: 10666 | H35: 6348 | J35: 5559 | L35: 4116 | N35: 5463 | P35: 4688
A36: 65 - 69 | B36: 43382 | D36: 15500 | F36: 8325 | H36: 4924 | J36: 3866 | L36: 3289 | N36: 4158 | P36: 3320
A37: 70 - 74 | B37: 33155 | D37: 11825 | F37: 6209 | H37: 3703 | J37: 2934 | L37: 2677 | N37: 3303 | P37: 2504
A38: 75 - 79 | B38: 23906 | D38: 8804 | F38: 4339 | H38: 2680 | J38: 2089 | L38: 1986 | N38: 2361 | P38: 1647
A39: 80 - 84 | B39: 15735 | D39: 5705 | F39: 2975 | H39: 1637 | J39: 1377 | L39: 1357 | N39: 1606 | P39: 1078
A40: 85 y más | B40: 11390 | D40: 3938 | F40: 2238 | H40: 1077 | J40: 1000 | L40: 1132 | N40: 1213 | P40: 792
A42: Mujeres | B42: 1371757 | D42: 507363 | F42: 250171 | H42: 159001 | J42: 135474 | L42: 93934 | N42: 121203 | P42: 104611
A43: Menos de 20 | B43: 76671 | D43: 26036 | F43: 14716 | H43: 8922 | J43: 6938 | L43: 5513 | N43: 7627 | P43: 6919
A44: 20 - 24 | B44: 192480 | D44: 65913 | F44: 36329 | H44: 22794 | J44: 18237 | L44: 13588 | N44: 18511 | P44: 17108
A45: 25 - 29 | B45: 167730 | D45: 60856 | F45: 29946 | H45: 19262 | J45: 16784 | L45: 11557 | N45: 15554 | P45: 13771
A46: 30 - 34 | B46: 143191 | D46: 51237 | F46: 25504 | H46: 17025 | J46: 14468 | L46: 9891 | N46: 13211 | P46: 11855
A47: 35 - 39 | B47: 133032 | D47: 46759 | F47: 24331 | H47: 16357 | J47: 13190 | L47: 9013 | N47: 12241 | P47: 11141
A48: 40 - 44 | B48: 137705 | D48: 49072 | F48: 25972 | H48: 16704 | J48: 13832 | L48: 9273 | N48: 12248 | P48: 10604
A49: 45 - 49 | B49: 128903 | D49: 48355 | F49: 24085 | H49: 14915 | J49: 13056 | L49: 8428 | N49: 10753 | P49: 9311
A50: 50 - 54 | B50: 106517 | D50: 41430 | F50: 18809 | H50: 12069 | J50: 11006 | L50: 6984 | N50: 8809 | P50: 7410
A51: 55 - 59 | B51: 81776 | D51: 32906 | F51: 14040 | H51: 9045 | J51: 8459 | L51: 5350 | N51: 6623 | P51: 5353
A52: 60 - 64 | B52: 60577 | D52: 24625 | F52: 10852 | H52: 6590 | J52: 5891 | L52: 4213 | N52: 4742 | P52: 3664
A53: 65 - 69 | B53: 45818 | D53: 18354 | F53: 8480 | H53: 5115 | J53: 4451 | L53: 3106 | N53: 3741 | P53: 2571
A54: 70 - 74 | B54: 35934 | D54: 15013 | F54: 6430 | H54: 3918 | J54: 3340 | L54: 2500 | N54: 2748 | P54: 1985
A55: 75 - 79 | B55: 27199 | D55: 11674 | F55: 4755 | H55: 2860 | J55: 2587 | L55: 1946 | N55: 2083 | P55: 1294
A56: 80 - 84 | B56: 18798 | D56: 8321 | F56: 3256 | H56: 1943 | J56: 1807 | L56: 1313 | N56: 1245 | P56: 913
A57: 85 y más | B57: 15426 | D57: 6812 | F57: 2666 | H57: 1482 | J57: 1428 | L57: 1259 | N57: 1067 | P57: 712
A60: 1/ Incluye las personas menores que tramitaron su cédula y cumplirán 18 años hasta el 7 de febrero de 2010.
A61: Fuente: Sección Padrón Electoral del Tribunal Supremo de Elecciones

Sheet G1
B3: DISTRIBUCIÓN DEL TOTAL DE ELECTORES POR SEXO Y GRUPOS QUINQUENALES DE EDAD, SETIEMBRE 2008
B6: GRUPOS DE EDAD | C6: ELECTORES | G6: PORCENTAJE
C7: Total | D7: Hombres | E7: Mujeres | G7: Hombres | H7: Mujeres
C9: =SUM(C11:C25) -> 2743641 | D9: =SUM(D11:D25) -> 1371884 | E9: =SUM(E11:E25) -> 1371757
B11: menos de 20 | C11: =SUM(D11:E11) -> 156665 | D11: 79994 | E11: 76671 | G11: =(D11/($D$9))*-100 -> -5.830959469 | H11: =(E11/($D$9))*100 -> 5.588737823
B12: 20 a 24 | C12: =SUM(D12:E12) -> 393162 | D12: 200682 | E12: 192480 | G12: =(D12/($D$9))*-100 -> -14.62820472 | H12: =(E12/($D$9))*100 -> 14.03034076
B13: 25 a 29 | C13: 341517 | D13: 173787 | E13: 167730 | G13: =(D13/($D$9))*-100 -> -12.667762 | H13: 12.22625237
B14: 30 a 34 | C14: 289769 | D14: 146578 | E14: 143191 | G14: -10.68443105 | H14: 10.43754428
B15: 35 a 39 | C15: 267603 | D15: 134571 | E15: 133032 | G15: -9.809211274 | H15: 9.697029778
B16: 40 a 44 | C16: 275980 | D16: 138275 | E16: 137705 | G16: -10.07920495 | H16: 10.03765624
B17: 45 a 49 | C17: 257129 | D17: 128226 | E17: 128903 | G17: -9.346708614 | H17: 9.396056809
B18: 50 a 54 | C18: 211158 | D18: 104641 | E18: 106517 | G18: -7.627539938 | H18: 7.764286193
B19: 55 a 59 | C19: 160920 | D19: 79144 | E19: 81776 | G19: -5.769000878 | H19: 5.960853833
B20: 60 a 64 | C20: 118995 | D20: 58418 | E20: 60577 | G20: -4.258231746 | H20: 4.415606567
B21: 65 a 69 | C21: 89200 | D21: 43382 | E21: 45818 | G21: -3.162220713 | H21: 3.339786746
B22: 70 a 74 | C22: 69089 | D22: 33155 | E22: 35934 | G22: -2.416749521 | H22: 2.619317668
B23: 75 a 79 | C23: 51105 | D23: 23906 | E23: 27199 | G23: -1.742567156 | H23: 1.982602028
B24: 80 a 84 | C24: 34533 | D24: 15735 | E24: 18798 | G24: -1.146962863 | H24: 1.370232469
B25: 85 y más | C25: 26816 | D25: 11390 | E25: 15426 | G25: -0.8302451228 | H25: 1.124439093
A29: Fuente: Cuadro 3

Sheet C4
A1: CUADRO 4
A3: COSTA RICA: TOTAL DE ELECTORES POR PAÍS DE ORIGEN, SEGÚN SEXO Y
A4: GRUPO DE EDAD, AL 31 DE DICIEMBRE DEL 20081/
A6: Sexo y grupo de edad | B6: País de origen
B7: Total | D7: Costa Rica | F7: Nicaragua | H7: El Salvador | J7: Colombia | L7: China | N7: Cuba | P7: Panamá | R7: Perú | T7: Resto de países
A9: Costa Rica | B9: 2743641 | D9: 2706021 | F9: 20622 | H9: 3103 | J9: 2278 | L9: 1503 | N9: 1507 | P9: 1262 | R9: 1069 | T9: 6276
A10: 18 - 19 | B10: 156665 | D10: 156513 | F10: 42 | H10: 4 | J10: 40 | L10: 3 | N10: 23 | P10: 1 | R10: 10 | T10: 29
A11: 20 - 24 | B11: 393162 | D11: 392671 | F11: 252 | H11: 5 | J11: 61 | L11: 18 | N11: 43 | P11: 6 | R11: 23 | T11: 83
A12: 25 - 29 | B12: 341517 | D12: 340022 | F12: 853 | H12: 103 | J12: 179 | L12: 75 | N12: 41 | P12: 11 | R12: 45 | T12: 188
A13: 30 - 34 | B13: 289769 | D13: 286679 | F13: 1750 | H13: 274 | J13: 295 | L13: 140 | N13: 109 | P13: 31 | R13: 101 | T13: 390
A14: 35 - 39 | B14: 267603 | D14: 263363 | F14: 2352 | H14: 393 | J14: 329 | L14: 172 | N14: 165 | P14: 114 | R14: 119 | T14: 596
A15: 40 - 44 | B15: 275980 | D15: 271360 | F15: 2502 | H15: 370 | J15: 371 | L15: 147 | N15: 202 | P15: 165 | R15: 144 | T15: 719
A16: 45 - 49 | B16: 257129 | D16: 252993 | F16: 2063 | H16: 399 | J16: 295 | L16: 148 | N16: 193 | P16: 167 | R16: 168 | T16: 703
A17: 50 - 54 | B17: 211158 | D17: 207262 | F17: 1977 | H17: 444 | J17: 225 | L17: 140 | N17: 186 | P17: 152 | R17: 144 | T17: 628
A18: 55 - 59 | B18: 160920 | D18: 157333 | F18: 1743 | H18: 383 | J18: 164 | L18: 182 | N18: 132 | P18: 155 | R18: 120 | T18: 708
A19: 60 - 64 | B19: 118995 | D19: 115990 | F19: 1538 | H19: 295 | J19: 110 | L19: 135 | N19: 112 | P19: 159 | R19: 87 | T19: 569
A20: 65 - 69 | B20: 89200 | D20: 86891 | F20: 1284 | H20: 175 | J20: 70 | L20: 99 | N20: 88 | P20: 88 | R20: 37 | T20: 468
A21: 70 - 74 | B21: 69089 | D21: 66967 | F21: 1264 | H21: 122 | J21: 63 | L21: 89 | N21: 62 | P21: 67 | R21: 33 | T21: 422
A22: 75 - 79 | B22: 51105 | D22: 49271 | F22: 1159 | H22: 74 | J22: 41 | L22: 81 | N22: 57 | P22: 77 | R22: 15 | T22: 330
A23: 80 - 84 | B23: 34533 | D23: 33169 | F23: 925 | H23: 33 | J23: 23 | L23: 47 | N23: 52 | P23: 34 | R23: 14 | T23: 236
A24: 85 y más | B24: 26816 | D24: 25537 | F24: 918 | H24: 29 | J24: 12 | L24: 27 | N24: 42 | P24: 35 | R24: 9 | T24: 207
T25: 0
A26: Hombres | B26: 1371884 | D26: 1354341 | F26: 9297 | H26: 1332 | J26: 1101 | L26: 778 | N26: 815 | P26: 557 | R26: 607 | T26: 3056
A27: 18 - 19 | B27: 79994 | D27: 79923 | F27: 22 | H27: 2 | J27: 18 | L27: 2 | N27: 10 | P27: 1 | R27: 4 | T27: 12
A28: 20 - 24 | B28: 200682 | D28: 200436 | F28: 122 | H28: 2 | J28: 30 | L28: 11 | N28: 26 | P28: 2 | R28: 8 | T28: 45
A29: 25 - 29 | B29: 173787 | D29: 173146 | F29: 330 | H29: 59 | J29: 84 | L29: 51 | N29: 14 | P29: 2 | R29: 27 | T29: 74
A30: 30 - 34 | B30: 146578 | D30: 145210 | F30: 759 | H30: 119 | J30: 125 | L30: 73 | N30: 50 | P30: 14 | R30: 57 | T30: 171
A31: 35 - 39 | B31: 134571 | D31: 132583 | F31: 1096 | H31: 180 | J31: 168 | L31: 91 | N31: 83 | P31: 57 | R31: 63 | T31: 250
A32: 40 - 44 | B32: 138275 | D32: 136109 | F32: 1179 | H32: 158 | J32: 178 | L32: 58 | N32: 110 | P32: 75 | R32: 66 | T32: 342
A33: 45 - 49 | B33: 128226 | D33: 126474 | F33: 792 | H33: 159 | J33: 152 | L33: 71 | N33: 110 | P33: 63 | R33: 93 | T33: 312
A34: 50 - 54 | B34: 104641 | D34: 103054 | F34: 696 | H34: 158 | J34: 100 | L34: 74 | N34: 115 | P34: 69 | R34: 81 | T34: 294
A35: 55 - 59 | B35: 79144 | D35: 77489 | F35: 741 | H35: 158 | J35: 81 | L35: 99 | N35: 79 | P35: 59 | R35: 73 | T35: 365
A36: 60 - 64 | B36: 58418 | D36: 56904 | F36: 729 | H36: 136 | J36: 67 | L36: 69 | N36: 67 | P36: 71 | R36: 62 | T36: 313
A37: 65 - 69 | B37: 43382 | D37: 42194 | F37: 664 | H37: 81 | J37: 32 | L37: 41 | N37: 48 | P37: 43 | R37: 27 | T37: 252
A38: 70 - 74 | B38: 33155 | D38: 32112 | F38: 592 | H38: 59 | J38: 35 | L38: 50 | N38: 35 | P38: 34 | R38: 20 | T38: 218
A39: 75 - 79 | B39: 23906 | D39: 22965 | F39: 587 | H39: 40 | J39: 18 | L39: 52 | N39: 23 | P39: 32 | R39: 11 | T39: 178
A40: 80 - 84 | B40: 15735 | D40: 15014 | F40: 500 | H40: 8 | J40: 12 | L40: 22 | N40: 27 | P40: 18 | R40: 7 | T40: 127
A41: 85 y más | B41: 11390 | D41: 10728 | F41: 488 | H41: 13 | J41: 1 | L41: 14 | N41: 18 | P41: 17 | R41: 8 | T41: 103
T42: 0
A43: Mujeres | B43: 1371757 | D43: 1351680 | F43: 11325 | H43: 1771 | J43: 1177 | L43: 725 | N43: 692 | P43: 705 | R43: 462 | T43: 3220
A44: 18 - 19 | B44: 76671 | D44: 76590 | F44: 20 | H44: 2 | J44: 22 | L44: 1 | N44: 13 | P44: 0 | R44: 6 | T44: 17
A45: 20 - 24 | B45: 192480 | D45: 192235 | F45: 130 | H45: 3 | J45: 31 | L45: 7 | N45: 17 | P45: 4 | R45: 15 | T45: 38
A46: 25 - 29 | B46: 167730 | D46: 166876 | F46: 523 | H46: 44 | J46: 95 | L46: 24 | N46: 27 | P46: 9 | R46: 18 | T46: 114
A47: 30 - 34 | B47: 143191 | D47: 141469 | F47: 991 | H47: 155 | J47: 170 | L47: 67 | N47: 59 | P47: 17 | R47: 44 | T47: 219
A48: 35 - 39 | B48: 133032 | D48: 130780 | F48: 1256 | H48: 213 | J48: 161 | L48: 81 | N48: 82 | P48: 57 | R48: 56 | T48: 346
A49: 40 - 44 | B49: 137705 | D49: 135251 | F49: 1323 | H49: 212 | J49: 193 | L49: 89 | N49: 92 | P49: 90 | R49: 78 | T49: 377
A50: 45 - 49 | B50: 128903 | D50: 126519 | F50: 1271 | H50: 240 | J50: 143 | L50: 77 | N50: 83 | P50: 104 | R50: 75 | T50: 391
A51: 50 - 54 | B51: 106517 | D51: 104208 | F51: 1281 | H51: 286 | J51: 125 | L51: 66 | N51: 71 | P51: 83 | R51: 63 | T51: 334
A52: 55 - 59 | B52: 81776 | D52: 79844 | F52: 1002 | H52: 225 | J52: 83 | L52: 83 | N52: 53 | P52: 96 | R52: 47 | T52: 343
A53: 60 - 64 | B53: 60577 | D53: 59086 | F53: 809 | H53: 159 | J53: 43 | L53: 66 | N53: 45 | P53: 88 | R53: 25 | T53: 256
A54: 65 - 69 | B54: 45818 | D54: 44697 | F54: 620 | H54: 94 | J54: 38 | L54: 58 | N54: 40 | P54: 45 | R54: 10 | T54: 216
A55: 70 - 74 | B55: 35934 | D55: 34855 | F55: 672 | H55: 63 | J55: 28 | L55: 39 | N55: 27 | P55: 33 | R55: 13 | T55: 204
A56: 75 - 79 | B56: 27199 | D56: 26306 | F56: 572 | H56: 34 | J56: 23 | L56: 29 | N56: 34 | P56: 45 | R56: 4 | T56: 152
A57: 80 - 84 | B57: 18798 | D57: 18155 | F57: 425 | H57: 25 | J57: 11 | L57: 25 | N57: 25 | P57: 16 | R57: 7 | T57: 109
A58: 85 y más | B58: 15426 | D58: 14809 | F58: 430 | H58: 16 | J58: 11 | L58: 13 | N58: 24 | P58: 18 | R58: 1 | T58: 104
A61: 1/ Incluye las personas menores que tramitaron su cédula y cumplirán 18 años hasta el 7 de febrero de 2010.
A62: Fuente: Sección Padrón Electoral del Tribunal Supremo de Elecciones

Sheet G2
B2: Costa Rica | C2: 2706021
B3: Resto de países | C3: 6276 | D3: =+C3/$C$11*100 -> 16.68261563
B4: Perú | C4: 1069 | D4: 2.841573631
B5: Panamá | C5: 1262 | D5: 3.354598618
B6: Cuba | C6: 1507 | D6: 4.005847953
B7: China | C7: 1503 | D7: 3.995215311
B8: Colombia | C8: 2278 | D8: 6.05528974
B9: El Salvador | C9: 3103 | D9: 8.248272196
B10: Nicaragua | C10: 20622 | D10: 54.81658692
C11: =SUM(C3:C10) -> 37620
D14: =SUM(E14:S14) -> 0
D16: =SUM(E16:S16) -> 0
D18: =SUM(E18:S18) -> 0
D20: =SUM(E20:S20) -> 0
D22: =SUM(E22:S22) -> 0
D24: =SUM(E24:S24) -> 0
B26: Fuente: Cuadro 4 | D26: =SUM(E26:S26) -> 0
D28: =SUM(E28:S28) -> 0
D30: =SUM(E30:S30) -> 0

Sheet C5
A1: CUADRO 5
A3: COSTA RICA: TOTAL DE MOVIMIENTOS AL PADRÓN NACIONAL
A4: ELECTORAL POR TIPO DE MOVIMIENTO, SEGÚN MES
A5: AL 31 DE DICIEMBRE DE 2008
A7: Mes | B7: Padrón Nacional Electoral anterior | D7: Tipo de movimiento | O7: Padrón Nacional Electoral actual
D8: Inclusiones | I8: Exclusiones
D9: Cédulas Primera vez1/ | F9: Cédulas renovadas | I9: Defunción | K9: Cédulas vencidas | M9: Otras
A11: Enero | B11: 2689440 | D11: 9425 | F11: 3307 | I11: 1361 | K11: 3634 | M11: 11 | O11: 2697166
A12: Febrero | B12: 2697166 | D12: 6511 | F12: 2929 | I12: 1438 | K12: 2253 | M12: 11 | O12: 2702904
A13: Marzo | B13: 2702904 | D13: 5055 | F13: 2044 | I13: 930 | K13: 2738 | M13: 17 | O13: 2706318
A14: Abril | B14: 2706318 | D14: 8294 | F14: 3300 | I14: 1387 | K14: 1920 | M14: 18 | O14: 2714587
A15: Mayo | B15: 2714587 | D15: 6177 | F15: 2431 | I15: 2119 | K15: 2347 | M15: 9 | O15: 2718720
A16: Junio | B16: 2718720 | D16: 5927 | F16: 2105 | I16: 753 | K16: 2154 | M16: 11 | O16: 2723834
A17: Julio | B17: 2723834 | D17: 7015 | F17: 2464 | I17: 842 | K17: 2098 | M17: 8 | O17: 2730365
A18: Agosto | B18: 2730365 | D18: 6945 | F18: 3293 | I18: 1037 | K18: 4549 | M18: 7 | O18: 2735010
A19: Setiembre | B19: 2735010 | D19: 7783 | F19: 3071 | I19: 380 | K19: 6934 | M19: 8 | O19: 2738542
A20: Octubre | B20: 2738542 | D20: 8684 | F20: 4990 | I20: 1125 | K20: 11480 | M20: 14 | O20: 2739597
A21: Noviembre | B21: 2739597 | D21: 6475 | F21: 4755 | I21: 1120 | K21: 9581 | M21: 11 | O21: 2740115
A22: Diciembre | B22: 2740115 | D22: 5625 | F22: 4145 | I22: 1011 | K22: 5229 | M22: 4 | O22: 2743641
A25: 1/ Incluye nuevos electores, inclusión condicional de nuevos electores y otras inclusiones
A27: Fuente: Sección Padrón Electoral del Tribunal Supremo de Elecciones

Sheet C6
A1: CUADRO 6
A3: COSTA RICA: TOTAL DE PRODUCTOS Y SERVICIOS BRINDADOS, POR TIPO DE SERVICIO
A4: SEGÚN MES, AL 31 DE DICIEMBRE DE 20081/
A6: Mes | B6: Total | D6: Productos y Sevicios
D7: Cédulas de identidad impresas | F7: Tarjetas identidad de menores impresas | H7: Certificaciones y constancias expedidas | J7: Asambleas de partidos políticos fiscalizadas | L7: Atención de consultas en materia electoral 2/ | N7: Movimientos y actualizaciones al Padrón Electoral
A9: Total | B9: 4109921 | D9: 515337 | F9: 145322 | H9: 2854524 | J9: 2713 | L9: 2228 | N9: 589797
A11: Enero | B11: 371313 | D11: 50054 | F11: 16562 | H11: 247737 | J11: 14 | L11: 150 | N11: 56796
A12: Febrero | B12: 439821 | D12: 43070 | F12: 15824 | H12: 334559 | J12: 27 | L12: 125 | N12: 46216
A13: Marzo | B13: 280447 | D13: 32067 | F13: 7763 | H13: 205138 | J13: 39 | L13: 145 | N13: 35295
A14: Abril | B14: 346370 | D14: 48320 | F14: 10538 | H14: 234536 | J14: 44 | L14: 177 | N14: 52755
A15: Mayo | B15: 297393 | D15: 39788 | F15: 8673 | H15: 204025 | J15: 171 | L15: 158 | N15: 44578
A16: Junio | B16: 305227 | D16: 37551 | F16: 10108 | H16: 216924 | J16: 196 | L16: 199 | N16: 40249
A17: Julio | B17: 313137 | D17: 42006 | F17: 15713 | H17: 209261 | J17: 172 | L17: 170 | N17: 45815
A18: Agosto | B18: 331276 | D18: 45272 | F18: 11414 | H18: 222137 | J18: 174 | L18: 172 | N18: 52107
A19: Setiembre | B19: 307704 | D19: 42632 | F19: 11109 | H19: 202234 | J19: 258 | L19: 270 | N19: 51201
A20: Octubre | B20: 417492 | D20: 54367 | F20: 18049 | H20: 276166 | J20: 544 | L20: 200 | N20: 68166
A21: Noviembre | B21: 352966 | D21: 43903 | F21: 11497 | H21: 242298 | J21: 733 | L21: 297 | N21: 54238
A22: Diciembre | B22: 346775 | D22: 36307 | F22: 8072 | H22: 259509 | J22: 341 | L22: 165 | N22: 42381
A25: 1/ Algunos datos de este cuadro no coinciden con los publicados en trimestres anteriores, debido a ajustes realizados por las oficinas a final de año.
A26: 2/ A Partidos Políticos, Municipalidades, Asamblea Legislativa y otros
A28: Fuente: Oficinas del Tribunal Supremo de Elecciones

Sheet C7
A1: CUADRO 7
A3: COSTA RICA: TOTAL DE CERTIFICACIONES SOLICITADAS VÍA
A4: INTERNET POR TIPO DE SOLICITUD, SEGÚN MES
A5: AL 31 DE DICIEMBRE DE 2008
A7: Mes | B7: Total | D7: Tipo de solicitud
D8: Nacimiento | F8: Matrimonio | H8: Defunción | J8: No aparece matrimonio
A10: Total | B10: 77341 | D10: 37702 | F10: 15288 | H10: 4185 | J10: 20166
A12: Enero | B12: 8214 | D12: 3799 | F12: 2432 | H12: 319 | J12: 1664
A13: Febrero | B13: 7808 | D13: 2909 | F13: 1759 | H13: 378 | J13: 2762
A14: Marzo | B14: 5646 | D14: 1346 | F14: 1227 | H14: 310 | J14: 2763
A15: Abril | B15: 6250 | D15: 3292 | F15: 1129 | H15: 254 | J15: 1575
A16: Mayo | B16: 4999 | D16: 2243 | F16: 1107 | H16: 360 | J16: 1289
A17: Junio | B17: 5478 | D17: 3026 | F17: 1201 | H17: 308 | J17: 943
A18: Julio | B18: 6333 | D18: 3468 | F18: 1141 | H18: 269 | J18: 1455
A19: Agosto | B19: 6916 | D19: 3881 | F19: 1019 | H19: 436 | J19: 1580
A20: Setiembre | B20: 6553 | D20: 3352 | F20: 1170 | H20: 357 | J20: 1674
A21: Octubre | B21: 6568 | D21: 3321 | F21: 1126 | H21: 437 | J21: 1684
A22: Noviembre | B22: 5848 | D22: 2838 | F22: 993 | H22: 433 | J22: 1584
A23: Diciembre | B23: 6728 | D23: 4227 | F23: 984 | H23: 324 | J23: 1193
A26: Fuente: Departamento Civil, Tribunal Supremo de Elecciones

Sheet C8
A1: CUADRO 8
A3: COSTA RICA: TOTAL DE TARJETAS DE IDENTIDAD DE MENORES IMPRESAS
A4: POR PROVINCIA, SEGÚN MES, AL 31 DE DICIEMBRE DE 2008
A6: Mes | B6: Total | D6: Provincia
D7: San José | F7: Alajuela | H7: Cartago | J7: Heredia | L7: Guanacaste | N7: Puntarenas | P7: Limón
A9: Total | B9: 145322 | D9: 61685 | F9: 28622 | H9: 17994 | J9: 12723 | L9: 7073 | N9: 7602 | P9: 9623
A11: Enero | B11: 16562 | D11: 7351 | F11: 3041 | H11: 1803 | J11: 1278 | L11: 1120 | N11: 820 | P11: 1149
A12: Febrero | B12: 15824 | D12: 6299 | F12: 3180 | H12: 1985 | J12: 1366 | L12: 979 | N12: 859 | P12: 1156
A13: Marzo | B13: 7763 | D13: 3267 | F13: 1432 | H13: 952 | J13: 676 | L13: 457 | N13: 379 | P13: 600
A14: Abril1/ | B14: 10538 | D14: 4948 | F14: 2062 | H14: 1413 | J14: 1011 | L14: 0 | N14: 512 | P14: 592
A15: Mayo | B15: 8673 | D15: 3731 | F15: 1649 | H15: 1226 | J15: 742 | L15: 466 | N15: 482 | P15: 377
A16: Junio | B16: 10108 | D16: 4141 | F16: 2054 | H16: 1385 | J16: 960 | L16: 698 | N16: 594 | P16: 276
A17: Julio | B17: 15713 | D17: 5785 | F17: 3164 | H17: 2199 | J17: 1393 | L17: 252 | N17: 855 | P17: 2065
A18: Agosto | B18: 11414 | D18: 3934 | F18: 2904 | H18: 1638 | J18: 958 | L18: 696 | N18: 712 | P18: 572
A19: Setiembre | B19: 11109 | D19: 4861 | F19: 2092 | H19: 1402 | J19: 1044 | L19: 629 | N19: 347 | P19: 734
A20: Octubre | B20: 18049 | D20: 7362 | F20: 3427 | H20: 2384 | J20: 1689 | L20: 973 | N20: 991 | P20: 1223
A21: Noviembre | B21: 11497 | D21: 5066 | F21: 2198 | H21: 1367 | J21: 1152 | L21: 692 | N21: 652 | P21: 370
A22: Diciembre | B22: 8072 | D22: 4940 | F22: 1419 | H22: 240 | J22: 454 | L22: 111 | N22: 399 | P22: 509
A25: 1/ La estación de TIM de la Ofic. Regional de Liberia permaneció fuera de servicio
A26: Fuente: Departamento Civil y Coordinadora de Servicios Regionales del Tribunal Supremo de Elecciones

Sheet C9
A1: CUADRO 9
A3: COSTA RICA: TOTAL DE INSCRIPCIONES CIVILES POR MES, SEGÚN CLASE DE INSCRIPCIÓN
A4: AL 31 DE DICIEMBRE DE 2008
A6: Clase de inscripción 1/ | B6: Total | D6: Mes
D7: Enero | F7: Febrero | H7: Marzo | J7: Abril | L7: Mayo | N7: Junio | P7: Julio | R7: Agosto | T7: Setiembre | V7: Octubre | X7: Noviembre | Z7: Diciembre
A9: Nacimientos | B9: 68799 | D9: 4898 | F9: 8220 | H9: 4495 | J9: 7259 | L9: 5494 | N9: 5235 | P9: 4764 | R9: 4788 | T9: 3914 | V9: 7782 | X9: 6797 | Z9: 5153
A10: Matrimonios: | B10: 25302 | D10: 1218 | F10: 1697 | H10: 1562 | J10: 3234 | L10: 3690 | N10: 2759 | P10: 1853 | R10: 2890 | T10: 1674 | V10: 2202 | X10: 1250 | Z10: 1273
A11: Católicos | B11: 5318 | D11: 164 | F11: 524 | H11: 482 | J11: 922 | L11: 760 | N11: 815 | P11: 0 | R11: 273 | T11: 130 | V11: 624 | X11: 205 | Z11: 419
A12: Civiles | B12: 19588 | D12: 1014 | F12: 1160 | H12: 1064 | J12: 2200 | L12: 2892 | N12: 1922 | P12: 1853 | R12: 2600 | T12: 1519 | V12: 1531 | X12: 996 | Z12: 837
A13: Extranjeros | B13: 396 | D13: 40 | F13: 13 | H13: 16 | J13: 112 | L13: 38 | N13: 22 | P13: 0 | R13: 17 | T13: 25 | V13: 47 | X13: 49 | Z13: 17
A14: Defunciones | B14: 16092 | D14: 1643 | F14: 1699 | H14: 1693 | J14: 2231 | L14: 1237 | N14: 1096 | P14: 894 | R14: 866 | T14: 728 | V14: 1182 | X14: 1610 | Z14: 1213
A15: Divorcios | B15: 10351 | D15: 714 | F15: 1047 | H15: 730 | J15: 676 | L15: 812 | N15: 875 | P15: 849 | R15: 839 | T15: 925 | V15: 1118 | X15: 1010 | Z15: 756
A16: Separaciones Judiciales | B16: 111 | D16: 3 | F16: 15 | H16: 6 | J16: 16 | L16: 21 | N16: 8 | P16: 12 | R16: 4 | T16: 13 | V16: 3 | X16: 6 | Z16: 4
A17: Reconocimientos | B17: 18605 | D17: 737 | F17: 1625 | H17: 1189 | J17: 1405 | L17: 1772 | N17: 1527 | P17: 1842 | R17: 1392 | T17: 1765 | V17: 2091 | X17: 675 | Z17: 2585
A18: Legitimaciones | B18: 230 | D18: 19 | F18: 38 | H18: 12 | J18: 28 | L18: 30 | N18: 23 | P18: 16 | R18: 29 | T18: 13 | V18: 10 | X18: 8 | Z18: 4
A19: Adopciones | B19: 325 | D19: 11 | F19: 26 | H19: 6 | J19: 41 | L19: 23 | N19: 17 | P19: 15 | R19: 36 | T19: 58 | V19: 36 | X19: 20 | Z19: 36
A20: Impugnación de paternidad | B20: 319 | D20: 18 | F20: 30 | H20: 10 | J20: 37 | L20: 28 | N20: 26 | P20: 30 | R20: 23 | T20: 28 | V20: 50 | X20: 20 | Z20: 19
A21: Investigación de paternidad | B21: 704 | D21: 52 | F21: 56 | H21: 43 | J21: 95 | L21: 58 | N21: 68 | P21: 79 | R21: 41 | T21: 67 | V21: 50 | X21: 50 | Z21: 45
A22: Opciones 2/ | B22: 1267 | D22: 132 | F22: 129 | H22: 93 | J22: 63 | L22: 106 | N22: 73 | P22: 94 | R22: 52 | T22: 39 | V22: 53 | X22: 260 | Z22: 173
A23: Naturalizaciones | B23: 2196 | D23: 151 | F23: 279 | H23: 134 | J23: 58 | L23: 29 | N23: 178 | P23: 325 | R23: 244 | T23: 226 | V23: 376 | X23: 135 | Z23: 61
A26: 1/ Todos los datos se refieren a hechos inscritos en el mes respectivo, no así a los ocurridos.
A28: 2/ Trámite realizado en Actos Jurídicos.
A30: Fuente: Sección de Inscripciones, Oficina de Actos Jurídicos, Sección de Opciones y Naturalizaciones del Tribunal Supremo de Elecciones

Sheet G3
E2: Nacimientos | F2: Defunciones
D3: ENE | E3: 4898 | F3: 1643
D4: FEB | E4: 8220 | F4: 1699
D5: MAR | E5: 4495 | F5: 1693
D6: ABR | E6: 7259 | F6: 2231
D7: MAY | E7: 5494 | F7: 1237
D8: JUN | E8: 5235 | F8: 1096
D9: JUL | E9: 4764 | F9: 894
D10: AGO | E10: 4788 | F10: 866
D11: SET | E11: 3914 | F11: 728
D12: OCT | E12: 7782 | F12: 1182
D13: NOV | E13: 6797 | F13: 1610
D14: DIC | E14: 5153 | F14: 1213
B27: Fuente: Cuadro 9

Sheet G4yG5
F2: MATRIMONIOS INSCRITOS
F3: Civiles | G3: 19588 | H3: 77.416805
F4: Católicos | G4: 5318 | H4: 21.01810134
F5: Extranjeros | G5: 396 | H5: 1.565093668
F6: Total | G6: 25302
B24: Fuente: Cuadro 9
F29: MATRIMONIOS vs DIVORCIOS
G30: Matrimonios | H30: Divorcios
F31: ENE | G31: 1218 | H31: 714
F32: FEB | G32: 1697 | H32: 1047
F33: MAR | G33: 1562 | H33: 730
F34: ABR | G34: 3234 | H34: 676
F35: MAY | G35: 3690 | H35: 812
F36: JUN | G36: 2759 | H36: 875
F37: JUL | G37: 1853 | H37: 849
F38: AGO | G38: 2890 | H38: 839
F39: SET | G39: 1674 | H39: 925
F40: OCT | G40: 2202 | H40: 1118
F41: NOV | G41: 1250 | H41: 1010
F42: DIC | G42: 1273 | H42: 756
G43: 25302 | H43: 10351
B50: Fuente: Cuadro 9

Sheet C10
A1: CUADRO 10
A3: COSTA RICA: TOTAL DE NACIMIENTOS INSCRITOS POR PROVINCIA Y
A4: PARTIDO ESPECIAL, SEGÚN MES, AL 31 DE DICIEMBRE DE 20081/
A6: Mes | B6: Total | D6: San José | F6: Alajuela | H6: Cartago | J6: Heredia | L6: Guanacaste | N6: Puntarenas | P6: Limón | R6: Partido especial 2/
A8: Costa Rica | B8: 68799 | D8: 25472.73452 | F8: 13372.29286 | H8: 5873.0407 | J8: 4036.227534 | L8: 6345.521055 | N8: 5616.65601 | P8: 6677.905491 | R8: 1404.621832
A10: Enero | B10: 4897.863221 | D10: 1409.20013 | F10: 987.9967126 | H10: 555.8053796 | J10: 373.5891184 | L10: 665.684532 | N10: 405.6372045 | P10: 340.6253727 | R10: 159.3247711
A11: Febrero | B11: 8219.876264 | D11: 2750.64145 | F11: 1981.487383 | H11: 289.3484348 | J11: 890.021135 | L11: 1017.29782 | N11: 190.4571976 | P11: 935.8041152 | R11: 164.8187287
A12: Marzo | B12: 4494.972996 | D12: 2751.55711 | F12: 247.2280931 | H12: 189.541538 | J12: 159.3247711 | L12: 320.4808614 | N12: 581.4438485 | P12: 89.73464118 | R12: 155.6621327
A13: Abril | B13: 7259.34934 | D13: 2720.424683 | F13: 1574.934519 | H13: 835.0815588 | J13: 285.6857964 | L13: 541.1548259 | N13: 488.9622285 | P13: 723.3710871 | R13: 89.73464118
A14: Mayo | B14: 5493.957624 | D14: 2172.86024 | F14: 1165.634676 | H14: 645.5400208 | J14: 172.1440055 | L14: 173.9753247 | N14: 531.9982299 | P14: 494.4561861 | R14: 137.3489406
A15: Junio | B15: 5234.825956 | D15: 1462.308387 | F15: 1207.755018 | H15: 387.3240125 | J15: 341.5410323 | L15: 715.1301507 | N15: 578.6968697 | P15: 469.7333768 | R15: 72.33710871
A16: Julio | B16: 4764.176919 | D16: 1617.054861 | F16: 1213.248975 | H16: 733.4433427 | J16: 267.3726043 | L16: 336.0470746 | N16: 106.2165141 | P16: 423.034737 | R16: 67.75881069
A17: Agosto | B17: 4787.984069 | D17: 1773.632653 | F17: 382.7457144 | H17: 64.09617227 | J17: 408.3841833 | L17: 492.6248669 | N17: 607.0823174 | P17: 1039.27365 | R17: 20.14451129
A18: Setiembre | B18: 3913.529147 | D18: 952.2859881 | F18: 1369.826767 | H18: 225.2522626 | J18: 184.0475804 | L18: 449.5888655 | N18: 434.0226523 | P18: 80.57804514 | R18: 217.9269857
A19: Octubre | B19: 7782.190974 | D19: 2740.569195 | F19: 1025.538756 | H19: 922.0692211 | J19: 444.0949079 | L19: 892.7681138 | N19: 885.442837 | P19: 729.7807043 | R19: 141.9272386
A20: Noviembre | B20: 6796.94124 | D20: 3537.19305 | F20: 1526.40456 | H20: 752.6721944 | J20: 445.9262271 | L20: 120.8670677 | N20: 87.90332198 | P20: 258.2160083 | R20: 67.75881069
A21: Diciembre | B21: 5153.332251 | D21: 1585.006774 | F21: 689.4916818 | H21: 272.866562 | J21: 64.09617227 | L21: 619.9015519 | N21: 718.7927891 | P21: 1093.297567 | R21: 109.8791525
A24: 1/ Los datos de este cuadro no coinciden con los publicados en trimestres anteriores, debido a ajustes realizados a final de año.
A25: 2/ Inscripción de nacimientos de costarricenses nacidos en el extranjero
A27: Fuente: Sección de Inscripciones del Tribunal Supremo de Elecciones

Sheet C11
A1: CUADRO 11
A3: COSTA RICA: TOTAL DE DEFUNCIONES INSCRITAS POR PROVINCIA, SEGÚN MES
A4: AL 31 DE DICIEMBRE DE 2008
A6: Mes | B6: Total | D6: San José | F6: Alajuela | H6: Cartago | J6: Heredia | L6: Guanacaste | N6: Puntarenas | P6: Limón
A8: Costa Rica | B8: 16092 | D8: 7471 | F8: 2459 | H8: 1475 | J8: 1167 | L8: 1268 | N8: 1164 | P8: 1083
A10: Enero | B10: 1643 | D10: 701 | F10: 261 | H10: 87 | J10: 158 | L10: 167 | N10: 161 | P10: 108
A11: Febrero | B11: 1699 | D11: 1049 | F11: 303 | H11: 78 | J11: 82 | L11: 156 | N11: 22 | P11: 9
A12: Marzo | B12: 1693 | D12: 559 | F12: 236 | H12: 288 | J12: 76 | L12: 70 | N12: 252 | P12: 212
A13: Abril | B13: 2231 | D13: 993 | F13: 347 | H13: 192 | J13: 147 | L13: 170 | N13: 180 | P13: 202
A14: Mayo | B14: 1237 | D14: 656 | F14: 161 | H14: 107 | J14: 80 | L14: 132 | N14: 41 | P14: 60
A15: Junio | B15: 1096 | D15: 467 | F15: 174 | H15: 114 | J15: 80 | L15: 63 | N15: 89 | P15: 109
A16: Julio | B16: 894 | D16: 394 | F16: 120 | H16: 97 | J16: 41 | L16: 121 | N16: 57 | P16: 62
A17: Agosto | B17: 866 | D17: 467 | F17: 151 | H17: 8 | J17: 59 | L17: 71 | N17: 61 | P17: 47
A18: Setiembre | B18: 728 | D18: 320 | F18: 131 | H18: 94 | J18: 60 | L18: 65 | N18: 19 | P18: 38
A19: Octubre | B19: 1182 | D19: 622 | F19: 135 | H19: 101 | J19: 117 | L19: 48 | N19: 136 | P19: 23
A20: Noviembre | B20: 1610 | D20: 743 | F20: 233 | H20: 196 | J20: 110 | L20: 178 | N20: 16 | P20: 134
A21: Diciembre | B21: 1213 | D21: 500 | F21: 207 | H21: 113 | J21: 157 | L21: 27 | N21: 130 | P21: 79
A25: Fuente: Sección de Inscripciones del Tribunal Supremo de Elecciones

Sheet C12
A1: CUADRO 12
A3: COSTA RICA: SOLICITUDES DE CÉDULA RECIBIDAS
A4: POR CLASE DE SOLICITUD, SEGÚN MES, AL 31 DE DICIEMBRE DE 2008
A5: ( Absoluto y Porcentaje )
A8: Mes | B8: Clase de solicitud
B9: Absoluto | K9: Porcentaje
B10: Total | D10: Primera vez | F10: Duplicado | H10: Traslado | K10: Total | M10: Primera vez | O10: Duplicado | Q10: Traslado
A12: TOTAL | B12: 523981 | D12: 85004 | F12: 438511 | H12: 466 | K12: 100 | M12: 16.22272563 | O12: 83.68833984 | Q12: 0.08893452243
A14: Enero | B14: 51877 | D14: 9470 | F14: 42380 | H14: 27 | K14: 100 | M14: 18.25471789 | O14: 81.69323592 | Q14: 0.05204618617
A15: Febrero | B15: 42004 | D15: 6454 | F15: 35517 | H15: 33 | K15: 100 | M15: 15.36520331 | O15: 84.55623274 | Q15: 0.07856394629
A16: Marzo | B16: 34839 | D16: 5749 | F16: 29056 | H16: 34 | K16: 100 | M16: 16.50162175 | O16: 83.40078647 | Q16: 0.09759177933
A17: Abril | B17: 42913 | D17: 7155 | F17: 35721 | H17: 37 | K17: 100 | M17: 16.67326917 | O17: 83.24050987 | Q17: 0.08622095868
A18: Mayo | B18: 40665 | D18: 6184 | F18: 34453 | H18: 28 | K18: 100 | M18: 15.20718062 | O18: 84.7239641 | Q18: 0.06885528095
A19: Junio | B19: 42215 | D19: 6760 | F19: 35423 | H19: 32 | K19: 100 | M19: 16.01326543 | O19: 83.91093213 | Q19: 0.07580243989
A20: Julio | B20: 45089 | D20: 7525 | F20: 37541 | H20: 23 | K20: 100 | M20: 16.68921466 | O20: 83.25977511 | Q20: 0.05101022422
A21: Agosto | B21: 42836 | D21: 6624 | F21: 36175 | H21: 37 | K21: 100 | M21: 15.46362872 | O21: 84.44999533 | Q21: 0.08637594547
A22: Setiembre | B22: 47353 | D22: 8363 | F22: 38947 | H22: 43 | K22: 100 | M22: 17.66097185 | O22: 82.24822081 | Q22: 0.09080734061
A23: Octubre | B23: 52300 | D23: 8311 | F23: 43910 | H23: 79 | K23: 100 | M23: 15.89101338 | O23: 83.95793499 | Q23: 0.1510516252
A24: Noviembre | B24: 45467 | D24: 6793 | F24: 38624 | H24: 50 | K24: 100 | M24: 14.9405063 | O24: 84.94952383 | Q24: 0.1099698683
A25: Diciembre | B25: 36423 | D25: 5616 | F25: 30764 | H25: 43 | K25: 100 | M25: 15.41882876 | O25: 84.46311397 | Q25: 0.1180572715
A28: Fuente: Sección Solicitudes Cedulares y Coordinación de Servicios Regionales del Tribunal Supremo de Elecciones

Sheet G6
F2: SOLICITUDES CEDULARES RECIBIDAS
F3: TOTAL | G3: 523981
F4: Duplicado | G4: 438511 | H4: =+G4/$G$3*100 -> 83.68833984
F5: Primera vez | G5: 85004 | H5: =+G5/$G$3*100 -> 16.22272563
F6: Traslado | G6: 466 | H6: =+G6/$G$3*100 -> 0.08893452243
C25: Fuente: Cuadro 12

Sheet C13
A1: CUADRO 13
A3: COSTA RICA: TOTAL DE SOLICITUDES DE CÉDULA RECIBIDAS
A4: POR FUENTE DE INGRESO, SEGÚN MES
A5: AL 31 DE DICIEMBRE DE 2008
A7: Mes | B7: Fuente de ingreso
B8: Total | D8: Oficina central | F8: Oficinas regionales 1/ | H8: Consulados | J8: Cedulación a domicilio | L8: Cedulación ambulante
A10: TOTAL | B10: 523981 | D10: 200080 | F10: 302438 | H10: 4097 | J10: 2800 | L10: 14566
A12: Enero | B12: 51877 | D12: 20675 | F12: 30836 | H12: 181 | J12: 185 | L12: 0
A13: Febrero | B13: 42004 | D13: 16301 | F13: 25058 | H13: 433 | J13: 212 | L13: 0
A14: Marzo | B14: 34839 | D14: 13380 | F14: 19517 | H14: 277 | J14: 195 | L14: 1470
A15: Abril | B15: 42913 | D15: 16504 | F15: 24414 | H15: 476 | J15: 200 | L15: 1319
A16: Mayo | B16: 40665 | D16: 15177 | F16: 23741 | H16: 356 | J16: 158 | L16: 1233
A17: Junio | B17: 42215 | D17: 15651 | F17: 24137 | H17: 380 | J17: 214 | L17: 1833
A18: Julio | B18: 45089 | D18: 17560 | F18: 24400 | H18: 365 | J18: 275 | L18: 2489
A19: Agosto | B19: 42836 | D19: 16713 | F19: 25343 | H19: 385 | J19: 395 | L19: 0
A20: Setiembre | B20: 47353 | D20: 17865 | F20: 27029 | H20: 254 | J20: 240 | L20: 1965
A21: Octubre | B21: 52300 | D21: 19337 | F21: 29883 | H21: 410 | J21: 400 | L21: 2270
A22: Noviembre | B22: 45467 | D22: 16477 | F22: 26475 | H22: 368 | J22: 160 | L22: 1987
A23: Diciembre | B23: 36423 | D23: 14440 | F23: 21605 | H23: 212 | J23: 166 | L23: 0
A26: 1/ El Tribunal Supremo de Elecciones cuenta con 32 Oficinas Regionales.
A28: Fuente: Sección Solicitudes Cedulares y Coordinación de Servicios Regionales del Tribunal Supremo de Elecciones

Sheet G7
E2: SOLICITUDES CEDULARES RECIBIDAS
E3: TOTAL | F3: 523981
E4: Oficinas Regionales | F4: 302438 | G4: =+F4/$F$3*100 -> 57.71926845
E5: Oficina Central | F5: 200080 | G5: =+F5/$F$3*100 -> 38.18459066
E6: Consulados y domicilio | F6: 6897 | G6: =+F6/$F$3*100 -> 1.316269101
E7: Cedulación Ambulante | F7: 14566 | G7: =+F7/$F$3*100 -> 2.779871789
B27: Fuente: Cuadro 13

Sheet C14
A1: CUADRO 14
A3: COSTA RICA: SOLICITUDES DE CÉDULA RECIBIDAS POR CLASE DE SOLICITUD
A4: SEGÚN PROVINCIA, AL 31 DE DICIEMBRE DE 2008
A5: (Absoluto y Porcentaje)
A7: Provincia | B7: Clase de solicitud
B8: Absoluto | K8: Porcentaje
B9: Total | D9: Primera vez | F9: Duplicado | H9: Traslado | K9: Total | M9: Primera vez | O9: Duplicado | Q9: Traslado
A11: Costa Rica | B11: 523981 | D11: 85004 | F11: 438511 | H11: 466 | K11: 100 | M11: 100 | O11: 100 | Q11: 100
A13: San José | B13: 236700 | D13: 33977 | F13: 202499 | H13: 224 | K13: 45.17339369 | M13: 39.97106019 | O13: 46.17877317 | Q13: 48.06866953
A14: Alajuela | B14: 82288 | D14: 15650 | F14: 66529 | H14: 109 | K14: 15.70438623 | M14: 18.41089831 | O14: 15.17156924 | Q14: 23.39055794
A15: Cartago | B15: 34512 | D15: 7028 | F15: 27468 | H15: 16 | K15: 6.586498365 | M15: 8.267846219 | O15: 6.263924964 | Q15: 3.433476395
A16: Heredia | B16: 38986 | D16: 6610 | F16: 32375 | H16: 1 | K16: 7.440346119 | M16: 7.776104654 | O16: 7.382939082 | Q16: 0.2145922747
A17: Guanacaste | B17: 33364 | D17: 6208 | F17: 27127 | H17: 29 | K17: 6.367406452 | M17: 7.303185732 | O17: 6.186161807 | Q17: 6.223175966
A18: Puntarenas | B18: 50066 | D18: 7808 | F18: 42176 | H18: 82 | K18: 9.55492661 | M18: 9.185450096 | O18: 9.618002741 | Q18: 17.59656652
A19: Limón | B19: 48065 | D19: 7723 | F19: 40337 | H19: 5 | K19: 9.173042534 | M19: 9.085454802 | O19: 9.198628997 | Q19: 1.072961373
A22: Fuente: Sección Solicitudes Cedulares y Coordinación de Servicios Regionales del Tribunal Supremo de Elecciones

Sheet G8
F12: Datos fuente para el gráfico
G13: Primera vez | H13: Duplicado | I13: Traslado
F14: Guanacaste | G14: 6.208 | H14: 27.127 | I14: 0.029
F15: Heredia | G15: 6.61 | H15: 32.375 | I15: 0.001
F16: Cartago | G16: 7.028 | H16: 27.468 | I16: 0.016
F17: Limón | G17: 7.723 | H17: 40.337 | I17: 0.005
F18: Puntarenas | G18: 7.808 | H18: 42.176 | I18: 0.082
F19: Alajuela | G19: 15.65 | H19: 66.529 | I19: 0.109
F20: San José | G20: 33.977 | H20: 202.499 | I20: 0.224
B31: Fuente: Cuadro 14

Sheet C15
A1: CUADRO 15
A3: COSTA RICA: TOTAL DE RESOLUCIONES POR TIPO DE RESOLUCIÓN, SEGÚN MES
A4: AL 31 DE DICIEMBRE DE 20081/
A7: Mes | B7: Total | D7: Tipo de resolución
D8: Electorales | F8: Inscripciones | H8: Municipales | J8: Naturalizaciones | L8: Ocursos | N8: Procedimientos
A10: Total | B10: 5021 | D10: 100 | F10: 730 | H10: 124 | J10: 3605 | L10: 41 | N10: 421
A12: Enero | B12: 321 | D12: 11 | F12: 96 | H12: 13 | J12: 182 | L12: 0 | N12: 19
A13: Febrero | B13: 472 | D13: 16 | F13: 102 | H13: 10 | J13: 258 | L13: 2 | N13: 84
A14: Marzo | B14: 284 | D14: 4 | F14: 75 | H14: 5 | J14: 168 | L14: 5 | N14: 27
A15: Abril | B15: 482 | D15: 9 | F15: 92 | H15: 20 | J15: 315 | L15: 4 | N15: 42
A16: Mayo | B16: 434 | D16: 9 | F16: 67 | H16: 10 | J16: 300 | L16: 0 | N16: 48
A17: Junio | B17: 324 | D17: 6 | F17: 79 | H17: 12 | J17: 184 | L17: 1 | N17: 42
A18: Julio | B18: 218 | D18: 11 | F18: 69 | H18: 5 | J18: 108 | L18: 2 | N18: 23
A19: Agosto | B19: 372 | D19: 9 | F19: 70 | H19: 11 | J19: 252 | L19: 7 | N19: 23
A20: Setiembre | B20: 499 | D20: 6 | F20: 23 | H20: 10 | J20: 433 | L20: 4 | N20: 23
A21: Octubre | B21: 456 | D21: 12 | F21: 4 | H21: 16 | J21: 401 | L21: 7 | N21: 16
A22: Noviembre | B22: 329 | D22: 4 | F22: 8 | H22: 7 | J22: 272 | L22: 1 | N22: 37
A23: Diciembre | B23: 830 | D23: 3 | F23: 45 | H23: 5 | J23: 732 | L23: 8 | N23: 37
A26: 1/ Las resoluciones se ajustaron con el informe de cierre anual enviado por la Biblioteca
A27: Fuente: Biblioteca y Secretaría del Tribunal Supremo de Elecciones

Sheet C16
A1: CUADRO 16
A3: COSTA RICA: TOTAL DE RESOLUCIONES ELECTORALES
A4: POR ACCIÓN TRAMITADA, SEGÚN MES
A5: AL 31 DE DICIEMBRE DE 20081/
A7: Mes | B7: Acción Tramitada
B8: Total | D8: Amparo, Nulidad y Apelaciones | F8: Denuncias y Demanda de nulidad | H8: Democracia semidirecta | J8: Denuncia sobre beligerancia política | L8: Hermenéutica electoral | N8: Cancelación de credenciales no municipales
A10: Total | B10: 100 | D10: 19 | F10: 19 | H10: 13 | J10: 13 | L10: 31 | N10: 5
A11: Enero | B11: 11 | D11: 1 | F11: 3 | H11: 3 | J11: 1 | L11: 3 | N11: 0
A12: Febrero | B12: 16 | D12: 4 | F12: 3 | H12: 2 | J12: 3 | L12: 4 | N12: 0
A13: Marzo | B13: 4 | D13: 2 | F13: 1 | H13: 0 | J13: 0 | L13: 1 | N13: 0
A14: Abril | B14: 9 | D14: 1 | F14: 3 | H14: 0 | J14: 2 | L14: 2 | N14: 1
A15: Mayo | B15: 9 | D15: 1 | F15: 3 | H15: 0 | J15: 3 | L15: 2 | N15: 0
A16: Junio | B16: 6 | D16: 1 | F16: 1 | H16: 3 | J16: 0 | L16: 1 | N16: 0
A17: Julio | B17: 11 | D17: 2 | F17: 4 | H17: 1 | J17: 2 | L17: 2 | N17: 0
A18: Agosto | B18: 9 | D18: 0 | F18: 1 | H18: 1 | J18: 1 | L18: 5 | N18: 1
A19: Setiembre | B19: 6 | D19: 2 | F19: 0 | H19: 1 | J19: 0 | L19: 3 | N19: 0
A20: Octubre | B20: 12 | D20: 2 | F20: 0 | H20: 1 | J20: 1 | L20: 5 | N20: 3
A21: Noviembre | B21: 4 | D21: 1 | F21: 0 | H21: 1 | J21: 0 | L21: 2 | N21: 0
A22: Diciembre | B22: 3 | D22: 2 | F22: 0 | H22: 0 | J22: 0 | L22: 1 | N22: 0
A25: 1/ Las resoluciones se ajustaron con el informe de cierre anual enviado por la Biblioteca
A27: Fuente: Biblioteca y Secretaría del Tribunal Supremo de Elecciones

Sheet C17
A1: CUADRO 17
A3: COSTA RICA: TOTAL DE RESOLUCIONES MUNICIPALES
A4: POR ACCIÓN TRAMITADA, SEGÚN MES
A5: AL 31 DE DICIEMBRE DE 20081/
A7: Mes | B7: Acción tramitada
B8: Total | D8: Cancelación de credenciales2/ | F8: Archivadas | H8: Rechazadas | J8: Anulada, corregida o sin lugar | L8: Traslado a la Contraloría o a la Procuraduría
A10: Total | B10: 124 | D10: 80 | F10: 17 | H10: 9 | J10: 4 | L10: 14
A11: Enero | B11: 13 | D11: 4 | F11: 3 | H11: 0 | J11: 1 | L11: 5
A12: Febrero | B12: 10 | D12: 7 | F12: 2 | H12: 0 | J12: 0 | L12: 1
A13: Marzo | B13: 5 | D13: 5 | F13: 0 | H13: 0 | J13: 0 | L13: 0
A14: Abril | B14: 20 | D14: 13 | F14: 1 | H14: 2 | J14: 2 | L14: 2
A15: Mayo | B15: 10 | D15: 7 | F15: 2 | H15: 0 | J15: 0 | L15: 1
A16: Junio | B16: 12 | D16: 9 | F16: 1 | H16: 1 | J16: 0 | L16: 1
A17: Julio | B17: 5 | D17: 4 | F17: 0 | H17: 0 | J17: 0 | L17: 1
A18: Agosto | B18: 11 | D18: 8 | F18: 1 | H18: 0 | J18: 0 | L18: 2
A19: Setiembre | B19: 10 | D19: 6 | F19: 2 | H19: 1 | J19: 1 | L19: 0
A20: Octubre | B20: 16 | D20: 9 | F20: 5 | H20: 1 | J20: 0 | L20: 1
A21: Noviembre | B21: 7 | D21: 5 | F21: 0 | H21: 2 | J21: 0 | L21: 0
A22: Diciembre | B22: 5 | D22: 3 | F22: 0 | H22: 2 | J22: 0 | L22: 0
A25: 1/ Las resoluciones se ajustaron con el informe de cierre anual enviado por la Biblioteca
A26: 2/ En total se cancelaron 87 credenciales municipales en 80 resoluciones
A27: Fuente: Biblioteca y Secretaría del Tribunal Supremo de Elecciones

Sheet C18
A1: CUADRO 18
Q2: VERIFICAR LOS DATOS
A3: COSTA RICA: ASPECTOS RELACIONADOS CON EL INGRESO DE SOLICITUDES DE
A4: DETERMINACIÓN DE PATERNIDAD RESPONSABLE DE ACUERDO CON LA
A5: LEY 8101 DE PATERNIDAD RESPONSABLE1/ POR TIPO, SEGÚN MES
A6: AL 31 DE DICIEMBRE DE 2008
A8: Mes | B8: Ingreso de solicitudes de determinación de paternidad
B9: Total | D9: Paternidad de oficio 2/ | F9: Declaración voluntaria 3/ | H9: Casos enviados a notificar 4/ | J9: Solicitudes prueba de ADN 5/ | L9: Devueltas por el correo 6/ | N9: Información incompleta 7/
A11: Enero | B11: 29856 | D11: 57 | F11: 13681 | H11: 1965 | J11: 8282 | L11: 2722 | N11: 3149
A12: Febrero | B12: 30036 | D12: 68 | F12: 13873 | H12: 1832 | J12: 8509 | L12: 2738 | N12: 3016
A13: Marzo | B13: 30289 | D13: 82 | F13: 13926 | H13: 1821 | J13: 8653 | L13: 2775 | N13: 3032
A14: Abril | B14: 30719 | D14: 90 | F14: 13993 | H14: 1868 | J14: 8821 | L14: 2799 | N14: 3148
A15: Mayo | B15: 31006 | D15: 97 | F15: 14117 | H15: 1755 | J15: 9064 | L15: 2816 | N15: 3157
A16: Junio | B16: 31402 | D16: 98 | F16: 14203 | H16: 1749 | J16: 9304 | L16: 2860 | N16: 3188
A17: Julio | B17: 31813 | D17: 107 | F17: 14248 | H17: 1867 | J17: 9423 | L17: 2907 | N17: 3261
A18: Agosto | B18: 32310 | D18: 108 | F18: 14343 | H18: 1929 | J18: 9625 | L18: 2957 | N18: 3348
A19: Setiembre | B19: 32873 | D19: 108 | F19: 14388 | H19: 2157 | J19: 9778 | L19: 2958 | N19: 3484
A20: Octubre | B20: 33256 | D20: 135 | F20: 14586 | H20: 2176 | J20: 9945 | L20: 2959 | N20: 3455
A21: Noviembre | B21: 33605 | D21: 135 | F21: 14681 | H21: 2090 | J21: 10168 | L21: 3029 | N21: 3502
A22: Diciembre | B22: 33830 | D22: 151 | F22: 14761 | H22: 2026 | J22: 10332 | L22: 3043 | N22: 3517
A25: 1/ Datos acumulados desde que se promulgó la Ley en abril 2001
A27: 2/ Presuntos padres notificados que no se presentan en el término de 10 días y como consecuencia se aplica la paternidad
A28: por presunción
A30: 3/ Padres que se presentan a firmar, aceptando la paternidad
A32: 4/ Expedientes ingresados que aún no han sido notificados
A34: 5/ Casos enviados al laboratorio para realizar la prueba de ADN
A36: 6/ Citatorios enviados al padre que han sido devueltos por el correo por dirección inexacta
A38: 7/ Casos de solicitudes en los que no se puede enviar citatorio al padre por no tener nombre y apellidos o dirección inexacta
A40: Fuente: Sección de Inscripciones del Tribunal Supremo de Elecciones

Sheet C19
A1: CUADRO 19
A3: COSTA RICA: TOTAL DE TRÁMITES DE SOLICITUD DE PRUEBAS DE ADN 1/
A4: POR TIPO DE TRÁMITE, SEGÚN MES, AL 31 DE DICIEMBRE DE 2008
A6: Mes | B6: Total de trámites | D6: Tipo de trámite
D7: Resultado 2/ | K7: Pendiente de realizar prueba | T7: Cita pendiente de asignar | V7: Resultados pendientes de entrega
D8: Total | F8: Positivo | H8: Negativo | K8: Total | M8: Padre no se presentó | O8: Madre no se presentó | Q8: Ninguno se presentó
A10: Enero | B10: 8282 | D10: 5488 | F10: 4472 | H10: 1016 | K10: 2240 | M10: 856 | O10: 730 | Q10: 654 | T10: 96 | V10: 458
A11: Febrero | B11: 8509 | D11: 5488 | F11: 4472 | H11: 1016 | K11: 2235 | M11: 855 | O11: 727 | Q11: 653 | T11: 146 | V11: 640
A12: Marzo | B12: 8653 | D12: 5488 | F12: 4472 | H12: 1016 | K12: 2213 | M12: 850 | O12: 716 | Q12: 647 | T12: 150 | V12: 802
A13: Abril | B13: 8821 | D13: 5488 | F13: 4472 | H13: 1016 | K13: 2209 | M13: 850 | O13: 713 | Q13: 646 | T13: 94 | V13: 1030
A14: Mayo | B14: 9064 | D14: 5592 | F14: 4560 | H14: 1032 | K14: 2286 | M14: 879 | O14: 737 | Q14: 670 | T14: 155 | V14: 1031
A15: Junio | B15: 9304 | D15: 5715 | F15: 4673 | H15: 1042 | K15: 2439 | M15: 948 | O15: 773 | Q15: 718 | T15: 236 | V15: 914
A16: Julio | B16: 9423 | D16: 5811 | F16: 4734 | H16: 1077 | K16: 2462 | M16: 960 | O16: 778 | Q16: 724 | T16: 140 | V16: 1010
A17: Agosto | B17: 9625 | D17: 5890 | F17: 4793 | H17: 1097 | K17: 2486 | M17: 972 | O17: 790 | Q17: 724 | T17: 147 | V17: 1102
A18: Setiembre | B18: 9778 | D18: 6103 | F18: 4959 | H18: 1144 | K18: 2505 | M18: 975 | O18: 794 | Q18: 736 | T18: 193 | V18: 977
A19: Octubre | B19: 9945 | D19: 6211 | F19: 5045 | H19: 1166 | K19: 2527 | M19: 991 | O19: 794 | Q19: 742 | T19: 100 | V19: 1107
A20: Noviembre | B20: 10168 | D20: 6426 | F20: 5218 | H20: 1208 | K20: 2579 | M20: 1014 | O20: 814 | Q20: 751 | T20: 215 | V20: 948
A21: Diciembre | B21: 10332 | D21: 6595 | F21: 5350 | H21: 1245 | K21: 2609 | M21: 1024 | O21: 825 | Q21: 760 | T21: 214 | V21: 914
A24: 1/ Casos registrados desde que se promulgó la ley en abril 2001
A25: 2/ Los primeros meses el laboratorio estuvo cerrado, por eso no hubo movimiento en los resultados
A27: Fuente: Sección de Inscripciones del Tribunal Supremo de Elecciones

Sheet C20
A1: CUADRO 20
A3: COSTA RICA: PRUEBAS DE ADN REALIZADAS 1/
A4: DONDE SE CONOCE EL RESULTADO
A5: AL 31 DE DICIEMBRE DE 2008
A7: Mes 2/ | B7: Total | D7: Absoluto | I7: Porcentaje
D8: Positivo | F8: Negativo | I8: Positivo | K8: Negativo
A10: Enero | B10: 5488 | D10: 4472 | F10: 1016 | I10: 81.48688047 | K10: 18.51311953
A11: Febrero | B11: 5488 | D11: 4472 | F11: 1016 | I11: 81.48688047 | K11: 18.51311953
A12: Marzo | B12: 5488 | D12: 4472 | F12: 1016 | I12: 81.48688047 | K12: 18.51311953
A13: Abril | B13: 5488 | D13: 4472 | F13: 1016 | I13: 81.48688047 | K13: 18.51311953
A14: Mayo | B14: 5592 | D14: 4560 | F14: 1032 | I14: 81.54506438 | K14: 18.45493562
A15: Junio | B15: 5715 | D15: 4673 | F15: 1042 | I15: 81.76727909 | K15: 18.23272091
A16: Julio | B16: 5811 | D16: 4734 | F16: 1077 | I16: 81.46618482 | K16: 18.53381518
A17: Agosto | B17: 5890 | D17: 4793 | F17: 1097 | I17: 81.37521222 | K17: 18.62478778
A18: Setiembre | B18: 6103 | D18: 4959 | F18: 1144 | I18: 81.25512043 | K18: 18.74487957
A19: Octubre | B19: 6211 | D19: 5045 | F19: 1166 | I19: 81.22685558 | K19: 18.77314442
A20: Noviembre | B20: 6426 | D20: 5218 | F20: 1208 | I20: 81.20136944 | K20: 18.79863056
A21: Diciembre | B21: 6595 | D21: 5350 | F21: 1245 | I21: 81.12206217 | K21: 18.87793783
A24: 1/ Casos registrados desde que se promulgó la ley en abril 2001
A25: 2/ Los primeros meses el laboratorio estuvo cerrado, por eso no hubo movimiento en los resultados
A27: Fuente: Sección de Inscripciones del Tribunal Supremo de Elecciones

Sheet C21
A1: CUADRO 21
A3: COSTA RICA: DONACIONES REPORTADAS PARA EL PROCESO ELECTORAL 2006-20101/
A4: SEGÚN PARTIDO POLÍTICO, AL 31 DE DICIEMBRE DEL 2008
A6: PARTIDO POLÍTICO | B6: MONTO EN COLONES | D6: PORCENTAJE
A9: TOTAL | B9: 494356967.2 | D9: 100
A11: ACCIÓN CANTONAL SIQUIRRES INDEPENDIENTE | B11: 1226000 | D11: 0.2479989322
A12: ACCIÓN CIUDADANA | B12: 116250076.2 | D12: 23.51541172
A13: ACCIÓN QUEPEÑA | B13: 3875330 | D13: 0.783913297
A14: ALIANZA PATRIÓTICA | B14: 47500 | D14: 0.009608441502
A15: ALIANZA POR SAN JOSÉ | B15: 51000 | D15: 0.01031643193
A16: AUTÉNTICO SANTANEÑO | B16: 903299 | D16: 0.1827220126
A17: AUTÓNOMO OROMONTANO | B17: 538000 | D17: 0.1088282427
A18: CURRIDABAT SIGLO XXI | B18: 12369860 | D18: 2.50221213
A19: DEL SOL | B19: 9559055 | D19: 1.933634122
A20: EL PUENTE Y LOS CAMINOS DE MORA | B20: 1735690 | D20: 0.3511005438
A21: FRENTE AMPLIO | B21: 20020500 | D21: 4.049806381
A22: GOICOECHEA EN ACCIÓN | B22: 4031000 | D22: 0.8154026883
A23: LIBERACIÓN NACIONAL | B23: 193882366.2 | D23: 39.21910261
A24: MOVIMIENTO LIBERTARIO | B24: 69755945.07 | D24: 14.11044037
A25: NUEVA LIGA FEMINISTA | B25: 212812.71 | D25: 0.04304838895
A26: ORGANIZACIÓN LABORISTA DE AGUIRRE | B26: 2750000 | D26: 0.5562781922
A27: PATRIA PRIMERO | B27: 90000 | D27: 0.01820546811
A28: RENOVACIÓN COSTARRICENSE | B28: 25000 | D28: 0.005057074475
A29: RESTAURACIÓN NACIONAL | B29: 32039425 | D29: 6.481030334
A30: UNIDAD SOCIAL CRISTIANA | B30: 4764000 | D30: 0.9636761119
A31: UNIÓN PARA EL CAMBIO | B31: 5808060 | D31: 1.174871679
A32: VERDE ECOLOGISTA | B32: 3120662 | D32: 0.6312568058
A33: YUNTA PROGRESISTA ESCAZUCEÑA | B33: 11301386 | D33: 2.286078027
A36: 1/ Donaciones recibidas y reportadas por los partidos políticos a partir del mes de abril del 2006
A37: 2/ El detalle de los contribuyentes se puede consultar en www.tse.go.cr
A38: Fuente: Contaduría del Tribunal Supremo de Elecciones

Sheet C22
A1: CUADRO 22
A3: COSTA RICA: DONACIONES REPORTADAS PARA EL PROCESO ELECTORAL 2006-20101/
A4: SEGÚN TIPO DE PERSONA, AL 31 DE DICIEMBRE DEL 2008
A6: TIPO DE PERSONA | B6: MONTO EN COLONES | D6: PORCENTAJE
A9: TOTAL | B9: 494356967 | D9: 100
A11: PERSONA FÍSICA | B11: 332710332 | D11: 67.30163712
A13: PERSONA JURÍDICA | B13: 135781260 | D13: 27.46623777
A15: PERSONA EXTRANJERA2/ | B15: 25865375 | D15: 5.232125109
A19: 1/ Donaciones recibidas y reportadas por los partidos políticos a partir del mes de abril del 2006
A20: 2/ Según el artículo 176 bis del Código Electoral
A21: 3/ El detalle de los contribuyentes se puede consultar en www.tse.go.cr
A23: Fuente: Contaduría del Tribunal Supremo de Elecciones
